Cogmind - Beta 9.3 --- EXPLORER MODE // 2019.12.21 @ 09:55:33 // Winter2019/RPGLIKE Player: BillyNate Result: Destroyed by H-77 Assassin with Coil Gun Performance ------------- Evolutions (7) 3500 Regions Visited (11) 2200 Robots Destroyed (1) 5 Value Destroyed (43) 43 Prototype IDs (0) 0 Alien Tech Used (0) 0 Bonus (4085) 4085 TOTAL SCORE: 9833 Bonus ------- Pacifist 4085 Cogmind --------- Core Integrity 0/4400 Matter 300/300 Energy 99/100 System Corruption 5% Temperature Cool (0) Movement Core (50) Location -3/Research Parts ------- > --- POWER (1) -------- (None) > --- PROPULSION (1) --- (None) > --- UTILITY (1) ------ (None) > --- WEAPON (1) ------- (None) > --- INVENTORY (0) ---- (None) Peak State ------------ None Favorites ----------- Power None Propulsion None Utility None Weapon None Build | -11 -10 -10 -9 -8 -7 -6 -6 -6 -5 -4 -3 ------- Run | Scr Mat Min Mat Mat Fac Fac Low Low Fac Fac Res Slots Evolved . | . . . . . . . . . . . . Power . | . . . . . . . . . . . . Propulsion . | . . . . . . . . . . . . Utility . | . . . . . . . . . . . . Weapon . | . . . . . . . . . . . . Parts Attached . | . . . . . . . . . . . . Power . | . . . . . . . . . . . . Engine . | . . . . . . . . . . . . Core . | . . . . . . . . . . . . Reactor . | . . . . . . . . . . . . Propulsion . | . . . . . . . . . . . . Treads . | . . . . . . . . . . . . Leg . | . . . . . . . . . . . . Wheel . | . . . . . . . . . . . . Hover . | . . . . . . . . . . . . Flight . | . . . . . . . . . . . . Utility . | . . . . . . . . . . . . Device . | . . . . . . . . . . . . Storage . | . . . . . . . . . . . . Processor . | . . . . . . . . . . . . Hackware . | . . . . . . . . . . . . Protection . | . . . . . . . . . . . . Artifact . | . . . . . . . . . . . . Weapon . | . . . . . . . . . . . . Energy Gun . | . . . . . . . . . . . . Energy Cannon . | . . . . . . . . . . . . Ballistic Gun . | . . . . . . . . . . . . Ballistic Cannon . | . . . . . . . . . . . . Launcher . | . . . . . . . . . . . . Special Weapon . | . . . . . . . . . . . . Impact Weapon . | . . . . . . . . . . . . Slashing Weapon . | . . . . . . . . . . . . Piercing Weapon . | . . . . . . . . . . . . Special Melee Weapon . | . . . . . . . . . . . . Unidentified Prototypes . | . . . . . . . . . . . . Parts Lost . | . . . . . . . . . . . . Power . | . . . . . . . . . . . . Propulsion . | . . . . . . . . . . . . Utility . | . . . . . . . . . . . . Weapon . | . . . . . . . . . . . . Highest Loss Streak . | . . . . . . . . . . . . Average Slot Usage (%) . | . . . . . . . . . . . . Naked Turns 1486 | . 22 53 99 90 214 17 370 53 103 223 242 Heaviest Build . | . . . . . . . . . . . . Greatest Support 3 | 3 3 3 3 3 3 3 3 3 3 3 3 Greatest Overweight (x) . | . . . . . . . . . . . . Average Overweight (x) . | . . . . . . . . . . . . Largest Inventory Capacity . | . . . . . . . . . . . . Average Capacity . | . . . . . . . . . . . . Most Carried . | . . . . . . . . . . . . Average Carried . | . . . . . . . . . . . . Final Capacity . | . . . . . . . . . . . . Final Carried . | . . . . . . . . . . . . Class Distribution -------------------- 100% | Hacker-Mutant Dominant Class ---------------- Hacker-Mutant | -10/Materials Hacker-Mutant | -10/Mines Hacker-Mutant | -9/Materials Hacker-Mutant | -8/Materials Hacker-Mutant | -7/Factory Hacker-Mutant | -6/Factory Hacker-Mutant | -6/Lower Caves Hacker-Mutant | -6/Lower Caves Hacker-Mutant | -5/Factory Hacker-Mutant | -4/Factory Hacker-Mutant | -3/Research Resources | -11 -10 -10 -9 -8 -7 -6 -6 -6 -5 -4 -3 ----------- Run | Scr Mat Min Mat Mat Fac Fac Low Low Fac Fac Res Matter Collected 200 | 200 . . . . . . . . . . . Remotely . | . . . . . . . . . . . . Salvage Created 54 | . . . . . . . . . . . 54 Parts 4 | . . . . . . . . . . . 4 Haulers Intercepted . | . . . . . . . . . . . . Recyclers Shooed . | . . . . . . . . . . . . Parts Field Recycled . | . . . . . . . . . . . . Retrieved Matter . | . . . . . . . . . . . . Parts Self-Destructed . | . . . . . . . . . . . . Prevented . | . . . . . . . . . . . . Kills | -11 -10 -10 -9 -8 -7 -6 -6 -6 -5 -4 -3 ------- Run | Scr Mat Min Mat Mat Fac Fac Low Low Fac Fac Res Combat Hostiles Destroyed 1 | . . . . . . . . . . . 1 Melee 1 | . . . . . . . . . . . 1 Classes Destroyed 1 | . . . . . . . . . . . 1 Swarmer 1 | . . . . . . . . . . . 1 Best Kill Streak 1 | . . . . . . . . . . . 1 Combat Bots Only 1 | . . . . . . . . . . . 1 Max Kills in Single Turn 1 | . . . . . . . . . . . 1 Gunslinging . | . . . . . . . . . . . . Exploded . | . . . . . . . . . . . . Melee 1 | . . . . . . . . . . . 1 Uniques/NPCs Destroyed . | . . . . . . . . . . . . Combat | -11 -10 -10 -9 -8 -7 -6 -6 -6 -5 -4 -3 -------- Run | Scr Mat Min Mat Mat Fac Fac Low Low Fac Fac Res Damage Taken 4409 | . . . 551 96 184 49 186 33 54 1723 1533 Core 4409 | . . . 551 96 184 49 186 33 54 1723 1533 Absorbed by Shields . | . . . . . . . . . . . . Core Remaining (%) 70 | 100 . 100 63 76 71 . . 62 67 28 . Volleys Fired . | . . . . . . . . . . . . Largest . | . . . . . . . . . . . . Hottest . | . . . . . . . . . . . . Shots Fired . | . . . . . . . . . . . . Gun . | . . . . . . . . . . . . Cannon . | . . . . . . . . . . . . Launcher . | . . . . . . . . . . . . Special . | . . . . . . . . . . . . Kinetic . | . . . . . . . . . . . . Thermal . | . . . . . . . . . . . . Explosive . | . . . . . . . . . . . . Electromagnetic . | . . . . . . . . . . . . Robot Hit Streak . | . . . . . . . . . . . . Robot Miss Streak . | . . . . . . . . . . . . Penetration Max . | . . . . . . . . . . . . Secondary Targets . | . . . . . . . . . . . . Shots Hit Robots . | . . . . . . . . . . . . Core Hits 14 | . . . . . 2 1 . . . 1 10 Critical Hits . | . . . . . . . . . . . . Critical Kills . | . . . . . . . . . . . . Critical Parts Destroyed . | . . . . . . . . . . . . Melee Attacks . | . . . . . . . . . . . . Impact . | . . . . . . . . . . . . Slashing . | . . . . . . . . . . . . Piercing . | . . . . . . . . . . . . Sneak Attacks . | . . . . . . . . . . . . Combat Hostiles . | . . . . . . . . . . . . Follow-up Attacks . | . . . . . . . . . . . . Damage Inflicted 130 | . . . . 16 7 10 . . 10 26 61 Guns . | . . . . . . . . . . . . Cannons . | . . . . . . . . . . . . Explosions . | . . . . . . . . . . . . Melee . | . . . . . . . . . . . . Ramming 130 | . . . . 16 7 10 . . 10 26 61 Kinetic . | . . . . . . . . . . . . Thermal . | . . . . . . . . . . . . Explosive . | . . . . . . . . . . . . Electromagnetic . | . . . . . . . . . . . . Impact . | . . . . . . . . . . . . Slashing . | . . . . . . . . . . . . Piercing . | . . . . . . . . . . . . Highest Corruption 5 | . . . . . 4 . . . . 3 5 Average Corruption 1 | . . . . . 1 . . . . 1 2 Corruption Purged . | . . . . . . . . . . . . Effects 1 | . . . . . . . . . . . 1 Heat Flow Errors 1 | . . . . . . . . . . . 1 Overload Shots . | . . . . . . . . . . . . Overflow Damage . | . . . . . . . . . . . . Projectiles . | . . . . . . . . . . . . Explosions . | . . . . . . . . . . . . Melee . | . . . . . . . . . . . . Knockbacks 1 | . . . . . . . . . . . 1 Impact 1 | . . . . . . . . . . . 1 Kinetic . | . . . . . . . . . . . . Secondary . | . . . . . . . . . . . . Self-Inflicted Damage 57 | . . . . 7 3 5 . . 4 12 26 Shots . | . . . . . . . . . . . . Rammed 29 | . . . . 2 2 1 . . 2 6 16 Targets Rammed 29 | . . . . 2 2 1 . . 2 6 16 Kicked . | . . . . . . . . . . . . Crushed . | . . . . . . . . . . . . Highest Temperature 146 | . . . . . . . . . . 8 146 Average Temperature 57 | . . . . . . . . . . 4 72 Received Heat Transfer 480 | . . . 264 54 9 18 . . . 108 27 Siege Activations . | . . . . . . . . . . . . Robots Corrupted . | . . . . . . . . . . . . Combat Hostiles . | . . . . . . . . . . . . Parts Fried . | . . . . . . . . . . . . Impact Corruptions . | . . . . . . . . . . . . Robots Melted . | . . . . . . . . . . . . Combat Hostiles . | . . . . . . . . . . . . Parts Melted . | . . . . . . . . . . . . Heat Transferred . | . . . . . . . . . . . . Parts Sabotaged . | . . . . . . . . . . . . Parts Stolen . | . . . . . . . . . . . . Parts Stripped . | . . . . . . . . . . . . Power Chain Reactions . | . . . . . . . . . . . . Missiles Intercepted . | . . . . . . . . . . . . Alert | -11 -10 -10 -9 -8 -7 -6 -6 -6 -5 -4 -3 ------- Run | Scr Mat Min Mat Mat Fac Fac Low Low Fac Fac Res Peak Influence 196 | . 15 4 121 111 111 54 . . 37 187 196 Average Influence 76 | . 3 4 62 81 66 46 . . 27 106 112 Maximum Alert Level . | . . . . . . . . . . . . Low Security (%) 100 | 100 100 100 100 100 100 100 . . 100 100 100 Level 1 . | . . . . . . . . . . . . Level 2 . | . . . . . . . . . . . . Level 3 . | . . . . . . . . . . . . Level 4 . | . . . . . . . . . . . . Level 5 . | . . . . . . . . . . . . High Security . | . . . . . . . . . . . . Max Security . | . . . . . . . . . . . . Squads Dispatched 12 | . . . 2 1 2 . . . . 4 3 Investigation 2 | . . . . . . . . . . 1 1 Extermination . | . . . . . . . . . . . . Reinforcement 10 | . . . 2 1 2 . . . . 3 2 Assault . | . . . . . . . . . . . . Garrison . | . . . . . . . . . . . . Intercept . | . . . . . . . . . . . . Construction Impeded . | . . . . . . . . . . . . Haulers Reinforced . | . . . . . . . . . . . . Stealth | -11 -10 -10 -9 -8 -7 -6 -6 -6 -5 -4 -3 --------- Run | Scr Mat Min Mat Mat Fac Fac Low Low Fac Fac Res Distress Signals 10 | . . . 4 1 . . . . 1 3 1 Communications Jammed . | . . . . . . . . . . . . Distress Signals . | . . . . . . . . . . . . Times Spotted 131 | . 1 . 24 10 10 2 8 3 3 52 18 Peak Tracking Total 21 | . 2 . 19 10 4 2 3 3 3 21 16 Tactical Retreats 16 | . . . 2 2 2 . 2 . . 7 1 Traps | -11 -10 -10 -9 -8 -7 -6 -6 -6 -5 -4 -3 ------- Run | Scr Mat Min Mat Mat Fac Fac Low Low Fac Fac Res Traps Triggered 4 | . . . . 3 . . . . . 1 . Indirectly . | . . . . . . . . . . . . Trap Hack Attempts . | . . . . . . . . . . . . Triggered . | . . . . . . . . . . . . Disarmed . | . . . . . . . . . . . . Reprogrammed . | . . . . . . . . . . . . Reused . | . . . . . . . . . . . . Traps Extracted . | . . . . . . . . . . . . Installed . | . . . . . . . . . . . . Triggered 1 | . . . . . . . 1 . . . . Machines | -11 -10 -10 -9 -8 -7 -6 -6 -6 -5 -4 -3 ---------- Run | Scr Mat Min Mat Mat Fac Fac Low Low Fac Fac Res Machines Disabled . | . . . . . . . . . . . . Max in Single Turn . | . . . . . . . . . . . . Machines Sabotaged . | . . . . . . . . . . . . Garrisons Compromised . | . . . . . . . . . . . . Overloaded Fab Kills . | . . . . . . . . . . . . Fab Network Shutdowns . | . . . . . . . . . . . . Hacking | -11 -10 -10 -9 -8 -7 -6 -6 -6 -5 -4 -3 --------- Run | Scr Mat Min Mat Mat Fac Fac Low Low Fac Fac Res Machines Accessed 5 | . . . . 1 . . . . . 2 2 Terminals 5 | . . . . 1 . . . . . 2 2 Fabricators . | . . . . . . . . . . . . Repair Stations . | . . . . . . . . . . . . Recycling Units . | . . . . . . . . . . . . Scanalyzers . | . . . . . . . . . . . . Garrison Access . | . . . . . . . . . . . . Total Hacks 11 | . . . . 3 . . . . . 5 3 Successful 6 | . . . . 1 . . . . . 4 1 Failed 5 | . . . . 2 . . . . . 1 2 Catastrophic 1 | . . . . . . . . . . . 1 Database Lockouts . | . . . . . . . . . . . . Manual 6 | . . . . 3 . . . . . . 3 Terminals 11 | . . . . 3 . . . . . 5 3 Fabricators . | . . . . . . . . . . . . Repair Stations . | . . . . . . . . . . . . Recycling Units . | . . . . . . . . . . . . Scanalyzers . | . . . . . . . . . . . . Garrison Access . | . . . . . . . . . . . . Terminal Hacks 6 | . . . . 1 . . . . . 4 1 Robot Analysis 2 | . . . . . . . . . . 2 . Level Access Points 2 | . . . . 1 . . . . . . 1 Alert Level 1 | . . . . . . . . . . 1 . Locate Traps 1 | . . . . . . . . . . 1 . Fabricator Hacks . | . . . . . . . . . . . . Repair Station Hacks . | . . . . . . . . . . . . Recycling Unit Hacks . | . . . . . . . . . . . . Scanalyzer . | . . . . . . . . . . . . Garrison Access Hacks . | . . . . . . . . . . . . Unauthorized Hacks . | . . . . . . . . . . . . Terminals . | . . . . . . . . . . . . Fabricators . | . . . . . . . . . . . . Repair Stations . | . . . . . . . . . . . . Recycling Units . | . . . . . . . . . . . . Scanalyzers . | . . . . . . . . . . . . Garrison Access . | . . . . . . . . . . . . Data Cores Recovered . | . . . . . . . . . . . . Used . | . . . . . . . . . . . . Hacking Detections 4 | . . . . 1 . . . . . 2 1 Full Trace Events 2 | . . . . . . . . . . 1 1 Feedback Events 1 | . . . . . . . . . . 1 . Corruption 1 | . . . . . . . . . . 1 . Feedback Blocked . | . . . . . . . . . . . . Robot Schematics Acquired . | . . . . . . . . . . . . Robots Built . | . . . . . . . . . . . . Matter . | . . . . . . . . . . . . Time . | . . . . . . . . . . . . Total Robot Build Rating . | . . . . . . . . . . . . Part Schematics Acquired . | . . . . . . . . . . . . Parts Built . | . . . . . . . . . . . . Matter . | . . . . . . . . . . . . Time . | . . . . . . . . . . . . Total Part Build Rating . | . . . . . . . . . . . . Parts Repaired . | . . . . . . . . . . . . Time . | . . . . . . . . . . . . Parts Recycled . | . . . . . . . . . . . . Recycled Matter . | . . . . . . . . . . . . Retrieved Matter . | . . . . . . . . . . . . Retrieved Components . | . . . . . . . . . . . . Parts Scanalyzed . | . . . . . . . . . . . . Part Schematics Acquired . | . . . . . . . . . . . . Parts Damaged . | . . . . . . . . . . . . Bothacking | -11 -10 -10 -9 -8 -7 -6 -6 -6 -5 -4 -3 ------------ Run | Scr Mat Min Mat Mat Fac Fac Low Low Fac Fac Res Used RIF Installer . | . . . . . . . . . . . . Robots Hacked . | . . . . . . . . . . . . Non-combat . | . . . . . . . . . . . . Combat . | . . . . . . . . . . . . Robot Hacks Applied . | . . . . . . . . . . . . Relay Couplers Released . | . . . . . . . . . . . . Robots Rewired . | . . . . . . . . . . . . Allies Hacked . | . . . . . . . . . . . . Hacks Repelled . | . . . . . . . . . . . . Allies | -11 -10 -10 -9 -8 -7 -6 -6 -6 -5 -4 -3 -------- Run | Scr Mat Min Mat Mat Fac Fac Low Low Fac Fac Res Total Allies . | . . . . . . . . . . . . Largest Group . | . . . . . . . . . . . . Highest-Rated Group . | . . . . . . . . . . . . Highest-Rated Ally . | . . . . . . . . . . . . Total Orders . | . . . . . . . . . . . . Ally Attacks . | . . . . . . . . . . . . Total Damage . | . . . . . . . . . . . . Kills . | . . . . . . . . . . . . Allies Corrupted . | . . . . . . . . . . . . Allies Melted . | . . . . . . . . . . . . Intel | -11 -10 -10 -9 -8 -7 -6 -6 -6 -5 -4 -3 ------- Run | Scr Mat Min Mat Mat Fac Fac Low Low Fac Fac Res Robot Analysis Total 2 | . . . . . . . . . . 2 . Derelict Logs Recovered 1 | . . . . . . . 1 . . . . Drone Launches . | . . . . . . . . . . . . Drone Recoveries . | . . . . . . . . . . . . Exploration | -11 -10 -10 -9 -8 -7 -6 -6 -6 -5 -4 -3 ------------- Run | Scr Mat Min Mat Mat Fac Fac Low Low Fac Fac Res Turns Passed 1498 | 12 22 53 99 90 214 17 370 53 103 223 242 Spaces Moved 2929 | 24 41 106 197 175 423 32 740 105 201 434 451 Core 2929 | 24 41 106 197 175 423 32 740 105 201 434 451 Treads . | . . . . . . . . . . . . Legs . | . . . . . . . . . . . . Wheels . | . . . . . . . . . . . . Hover . | . . . . . . . . . . . . Flight . | . . . . . . . . . . . . Fastest Speed 50 | 50 50 50 50 50 50 50 50 50 50 50 50 Average Speed 50 | 50 50 50 50 50 50 50 50 50 50 50 50 Slowest Speed 50 | 50 50 50 50 50 50 50 50 50 50 50 50 Overloaded Moves . | . . . . . . . . . . . . Propulsion Burnouts . | . . . . . . . . . . . . Robots Hopped . | . . . . . . . . . . . . Cave-ins Triggered . | . . . . . . . . . . . . Exploration Rate (%) 23 | 3 12 45 28 28 16 2 87 16 10 17 15 Regions Visited 11 Branch Regions 3 Pre-discovered Areas 1 | . . . . . . . 1 . . . . Known Exits Taken 11 | 1 1 1 1 1 1 1 1 1 1 1 . Unknown Exits Taken . | . . . . . . . . . . . . Scrap Searched 3 | . . 1 . . . . 2 . . . . Spaces Dug . | . . . . . . . . . . . . Terrain Destroyed . | . . . . . . . . . . . . Melee . | . . . . . . . . . . . . Projectile . | . . . . . . . . . . . . AOE . | . . . . . . . . . . . . Actions | -11 -10 -10 -9 -8 -7 -6 -6 -6 -5 -4 -3 --------- Run | Scr Mat Min Mat Mat Fac Fac Low Low Fac Fac Res Total 2948 | 23 41 105 196 176 424 32 739 104 202 439 467 Wait 1 | . 1 . . . . . . . . . . Move 2918 | 23 40 105 196 174 422 31 739 104 200 433 451 Hop . | . . . . . . . . . . . . Pick Up . | . . . . . . . . . . . . Fast Attach . | . . . . . . . . . . . . Attach . | . . . . . . . . . . . . Detach . | . . . . . . . . . . . . Swap . | . . . . . . . . . . . . Drop . | . . . . . . . . . . . . Fire . | . . . . . . . . . . . . Melee . | . . . . . . . . . . . . Ram 29 | . . . . 2 2 1 . . 2 6 16 Kick . | . . . . . . . . . . . . Crush . | . . . . . . . . . . . . Escape Stasis . | . . . . . . . . . . . . Rewire . | . . . . . . . . . . . . Trap . | . . . . . . . . . . . . Miscellaneous . | . . . . . . . . . . . . Route ------- -11/Scrapyard -10/Materials -10/Mines -9/Materials -8/Materials (discovered 3 exits: *Fac x3) -7/Factory -6/Factory -6/Lower Caves -6/Lower Caves -5/Factory -4/Factory -3/Research (discovered 3 exits: Res x3) History --------- Turn | Location | Event 4 | -11/Scrapyard | Identified exit to Materials 4 | -11/Scrapyard | Discovered exit to Materials (range 16) 13 | -11/Scrapyard | Entered Materials 25 | -10/Materials | Identified exit to Mines 25 | -10/Materials | Discovered exit to Mines (range 4) 35 | -10/Materials | Entered Mines 77 | -10/Mines | Identified exit to Materials 77 | -10/Mines | Discovered exit to Materials (range 6) 88 | -10/Mines | Entered Materials 90 | -9/Materials | Reached level 2 90 | -9/Materials | Reached level 3 185 | -9/Materials | Identified exit to Materials 185 | -9/Materials | Discovered exit to Materials (range 4) 187 | -9/Materials | Entered another Materials area 189 | -8/Materials | Reached level 4 189 | -8/Materials | Reached level 5 189 | -8/Materials | Reached level 6 227 | -8/Materials | Identified exit to Factory 277 | -8/Materials | Entered Factory 279 | -7/Factory | Reached level 7 279 | -7/Factory | Reached level 8 279 | -7/Factory | Reached level 9 305 | -7/Factory | Build established: Hacker-Mutant 478 | -7/Factory | Identified exit to Factory 478 | -7/Factory | Discovered exit to Factory (range 19) 491 | -7/Factory | Entered another Factory area 493 | -6/Factory | Reached level 10 493 | -6/Factory | Reached level 11 493 | -6/Factory | Reached level 12 498 | -6/Factory | Identified exit to Lower Caves 498 | -6/Factory | Discovered exit to Lower Caves (range 19) 508 | -6/Factory | Entered Lower Caves 510 | -6/Lower Caves | Reached level 13 866 | -6/Lower Caves | Identified exit to Lower Caves 866 | -6/Lower Caves | Discovered exit to Lower Caves (range 18) 878 | -6/Lower Caves | Entered another Lower Caves area 927 | -6/Lower Caves | Identified exit to Factory 927 | -6/Lower Caves | Discovered exit to Factory (range 9) 931 | -6/Lower Caves | Entered Factory 933 | -5/Factory | Reached level 14 933 | -5/Factory | Reached level 15 1022 | -5/Factory | Identified exit to Factory 1022 | -5/Factory | Discovered exit to Factory (range 11) 1034 | -5/Factory | Reached level 16 1034 | -5/Factory | Entered another Factory area 1036 | -4/Factory | Reached level 17 1036 | -4/Factory | Reached level 18 1176 | -4/Factory | Core integrity fell below 50% 1190 | -4/Factory | Spotted B-86 Titan 1251 | -4/Factory | Identified exit to Research 1251 | -4/Factory | Discovered exit to Research (range 13) 1257 | -4/Factory | Reached level 19 1257 | -4/Factory | Entered Research 1258 | -3/Research | Core integrity fell below 50% 1259 | -3/Research | Reached level 20 1259 | -3/Research | Reached level 21 1363 | -3/Research | Identified exit to Research 1363 | -3/Research | Reached level 22 1403 | -3/Research | Spotted B-86 Titan 1434 | -3/Research | Spotted B-86 Titan 1441 | -3/Research | Core integrity fell below 20% 1499 | -3/Research | Destroyed by H-77 Assassin with Coil Gun Last Messages --------------- U-05 Engineer lays Concrete. Penetrated by Slug. Slug penetrates Wall. Penetrated by Slug. Slug penetrates M-36 Artificer. Door malfunctions. M-36 Artificer destroyed. Slug penetrates Wall. Penetrated by Slug. Slug penetrates P-80 Master. Slug penetrates Wall. Slug penetrates U-05 Engineer. U-05 Engineer destroyed. Penetrated by Slug. Slug penetrates H-77 Assassin. Penetrated by Slug. Slug penetrates Door. Slug penetrates Wall. K-01 Serf collects debris. Penetrated by Slug. Map ----- +----------------------------------------------------+ | ????????????????? ????????#[#?######????????????? | | ????????????????? ????????#*#? #????????????? | | ????????????????? ????????#%# #????????????? | | ???????????????###"#########%# #????????????? | | ???????#######?# %%%%%%%%%%%+% / #????????????? | | ??????"G""" # %########## #????????????? | | ????""" """ # #????? # #????????????? | | ?# + #???? #?######????????????? | | ?# # #???"" #???????????????????? | | ?+ !?# #???"" #???????????????????? | | ?# ???# *#??"R #???????????????????? | | ###########????# %#? """ #???????????????????? | | ?????????????# !# """ #???????????????????? | | ????????????# # #???????????????????? | | "????????????# / #???????????????????? | | "????????????# ##########???????????????????? | | ????????????# #????????????????????????????? | | ????????????# #????????????????????????????? | | ????????????# #????????????????????????????? | | ????????????#^ #????????????????????????????? | | ????????????# #????????????????????????????? | | ????????????# #????????????????????????????? | | ??? ????????# #????????????????????????????? | | ?? ????????# #????????????????????????????? | | #"##+########### h ######+########??????????????? | | h %| @ #??????????????? | | h ! #??????????????? | | BB k #??????????????? | | B k +??????????????? | | =] ####################;### #??????????????? | | =! #?? ?????????????? ?? #??????????????? | | # ??????????????? ! #?? #??????????????? | | # * ??????????????? #??? ?????????????? | | # ????????????????"""#???? ???????????? | | ! " ????????????????"""#????? ??????????? | | # ?????????????????"""#?????? ????????? | | ##" ## ????????????????? #????????##+????????? | | ?## ## ??????????????????? #???????????????????? | | ??##### ???????????????????##????????????????????? | | ??????#??????????????????????????????????????????? | | ?????????????????????????????????????????????????? | | ?????????????????????????????????????????????????? | | ?????????????????????????????????????????????????? | | ?????????????????????????????????????????????????? | | ?????????????????????????????????????????????????? | | ?????????????????????????????????????????????????? | | ?????????????????????????????????????????????????? | | ?????????????????????????????????????????????????? | | ?????????????????????????????????????????????????? | | ?????????????????????????????????????????????????? | +----------------------------------------------------+ Best States ------------- Heat Dissipation 25 Energy Generation 5 Energy Capacity 100 Matter Stores 300 Matter Capacity 300 Sight Range 21 Terrain Scan Density 10 Resistance: KI 35 Resistance: TH 35 Resistance: EX 35 Resistance: EM 35 Resistance: I 35 Resistance: S 35 Resistance: P 35 Evasion (%) 50 Offensive Hacking 50 Item Schematics ----------------- None Robot Schematics ------------------ None Fabricated ------------ Nothing Alien Tech Used ----------------- None Achievements -------------- None Challenges ------------ None RPGLIKE | -11 -10 -10 -9 -8 -7 -6 -6 -6 -5 -4 -3 --------- Run | Scr Mat Min Mat Mat Fac Fac Low Low Fac Fac Res Levels Raised 21 | . . . 2 3 3 3 1 . 3 3 3 XP Earned 37618 | 6000 . 600 3467 4515 4597 4279 649 831 3871 4228 4581 XP Spent 37100 | 3580 500 700 800 7680 4525 . . . 5995 7205 6115 Upgrades 87 | 23 1 1 1 24 7 . . . 11 11 8 Core Integrity 76 | 18 . . . 24 5 . . . 11 11 7 Sight Range 5 | 2 1 1 . . . . . . . . 1 Hack Attack % 6 | 3 . . 1 . 2 . . . . . . Protomatter Created . | . . . . . . . . . . . . Protomatter Decayed 23 | . . . . . . . . . . 23 . Game ------ Seed MappingLightningProjector Manual? 0 Play Time 00:31:38 Cumulative 86.6 hours Start 2019.12.21 @ 09:27:11 End 2019.12.21 @ 09:55:33 Sessions 1 Manual Loads 0 Difficulty Explorer Special Mode Winter2019/RPGLIKE Game No. 55 Rogue 23 Adventurer 9 Explorer 23 Win Type - Total 2 Types 2/0/0/0/0/0/0 Lore% 51 Gallery% 60 Achievement% 44 Wizard Run 0 Options --------- ASCII 0 Keyboard 0 Movement Mouse Keybinds 0 Fullscreen 1 Font 18/SmallcapsGlow Map View 76x50 Tactical HUD 0 Map Filters NONE Filters NONE Steam 1 RUN: 6df53fe0-1654-4974-9a9a-100423459e44